Workbook

Sheet Лист1
B2: первая цена | C2: вторая | D2: третья | H2: Формула | I2: UDF
B3: 82 | C3: 83 | D3: 84
B4: 1 | C4: 1 | D4: 1 | H4: =IF(AND(SUM(B4:D4)=0,D4<>0),"вне рынка",IF(ABS(SIGN(B4)+SIGN(C4)+SIGN(D4))=3,($B$3*B4+$C$3*C4+$D$3*D4)/(B4+C4+D4),IF(SIGN(B4)=SIGN(D4),($B$3*(B4+C4)+$D$3*D4)/(B4+C4+D4),IF(ABS(D4)>ABS(B4+C4),$D$3,IF(SIGN(B4)=SIGN(C4),($B$3*B4+$C$3*C4)/(B4+C4),$B$3))))) -> 83 | I4: =IF(SUM(B4:D4),TradeFIFO(B4:E4,$B$3:$D$3),"вне рынка") -> 83 | J4: =I4=H4 -> TRUE
B5: 1 | C5: 1 | D5: 0 | H5: =IF(AND(SUM(B5:D5)=0,D5<>0),"вне рынка",IF(ABS(SIGN(B5)+SIGN(C5)+SIGN(D5))=3,($B$3*B5+$C$3*C5+$D$3*D5)/(B5+C5+D5),IF(SIGN(B5)=SIGN(D5),($B$3*(B5+C5)+$D$3*D5)/(B5+C5+D5),IF(ABS(D5)>ABS(B5+C5),$D$3,IF(SIGN(B5)=SIGN(C5),($B$3*B5+$C$3*C5)/(B5+C5),$B$3))))) -> 82.5 | I5: =IF(SUM(B5:D5),TradeFIFO(B5:E5,$B$3:$D$3),"вне рынка") -> 82.5 | J5: =I5=H5 -> TRUE
B6: -1 | C6: -1 | D6: -1 | H6: 83 | I6: =IF(SUM(B6:D6),TradeFIFO(B6:E6,$B$3:$D$3),"вне рынка") -> 83 | J6: =I6=H6 -> TRUE
B7: -1 | C7: -1 | D7: 0 | H7: 82.5 | I7: =IF(SUM(B7:D7),TradeFIFO(B7:E7,$B$3:$D$3),"вне рынка") -> 82.5 | J7: =I7=H7 -> TRUE
B8: -1 | C8: -1 | D8: 2 | H8: вне рынка | I8: =IF(SUM(B8:D8),TradeFIFO(B8:E8,$B$3:$D$3),"вне рынка") -> вне рынка | J8: =I8=H8 -> TRUE
B9: -3 | C9: 1 | D9: 3 | H9: 84 | I9: =IF(SUM(B9:D9),TradeFIFO(B9:E9,$B$3:$D$3),"вне рынка") -> 84 | J9: =I9=H9 -> TRUE
B10: -2 | C10: 1 | D10: -2 | H10: 83.33333333 | I10: =IF(SUM(B10:D10),TradeFIFO(B10:E10,$B$3:$D$3),"вне рынка") -> 83.33333333 | J10: =I10=H10 -> TRUE
B11: 2 | C11: 1 | D11: -4 | H11: 84 | I11: =IF(SUM(B11:D11),TradeFIFO(B11:E11,$B$3:$D$3),"вне рынка") -> 84 | J11: =I11=H11 -> TRUE
B12: 3 | C12: -1 | D12: -2 | H12: вне рынка | I12: =IF(SUM(B12:D12),TradeFIFO(B12:E12,$B$3:$D$3),"вне рынка") -> вне рынка | J12: =I12=H12 -> TRUE
B13: 3 | C13: -1 | D13: 4 | H13: 83.33333333 | I13: =IF(SUM(B13:D13),TradeFIFO(B13:E13,$B$3:$D$3),"вне рынка") -> 83.33333333 | J13: =I13=H13 -> TRUE
B14: -2 | C14: 1 | D14: 0 | H14: 82 | I14: =IF(SUM(B14:D14),TradeFIFO(B14:E14,$B$3:$D$3),"вне рынка") -> 82 | J14: =I14=H14 -> TRUE
B15: 2 | C15: -1 | D15: 0 | H15: 82 | I15: =IF(SUM(B15:D15),TradeFIFO(B15:E15,$B$3:$D$3),"вне рынка") -> 82 | J15: =I15=H15 -> TRUE
B22: первая цена | C22: вторая | D22: третья | E22: четвертая | H22: Формула | I22: UDF
B23: 82 | C23: 83 | D23: 84 | E23: 85
B25: 1 | C25: 1 | D25: 1 | E25: 1 | H25: =(B23*B25+C23*C25+D23*D25+E23*E25)/(B25+C25+D25+E25) -> 83.5 | I25: =IF(SUM(B25:E25),TradeFIFO(B25:E25,$B$23:$E$23),"вне рынка") -> 83.5 | J25: =H25=I25 -> TRUE
B26: 1 | C26: 1 | D26: 1 | E26: 0 | H26: =(B23*B26+C23*C26+D23*D26+E23*E26)/(B26+C26+D26+E26) -> 83 | I26: =IF(SUM(B26:E26),TradeFIFO(B26:E26,$B$23:$E$23),"вне рынка") -> 83 | J26: =H26=I26 -> TRUE
B27: 1 | C27: 1 | D27: 0 | E27: 0 | H27: =(B23*B27+C23*C27+D23*D27+E23*E27)/(B27+C27+D27+E27) -> 82.5 | I27: =IF(SUM(B27:E27),TradeFIFO(B27:E27,$B$23:$E$23),"вне рынка") -> 82.5 | J27: TRUE
B28: 1 | C28: 1 | D28: 0 | E28: 1 | H28: =(B23*B28+C23*C28+D23*D28+E23*E28)/(B28+C28+D28+E28) -> 83.33333333 | I28: =IF(SUM(B28:E28),TradeFIFO(B28:E28,$B$23:$E$23),"вне рынка") -> 83.33333333 | J28: TRUE
B29: -1 | C29: -1 | D29: -1 | E29: -1 | H29: =(B23*B29+C23*C29+D23*D29+E23*E29)/(B29+C29+D29+E29) -> 83.5 | I29: =IF(SUM(B29:E29),TradeFIFO(B29:E29,$B$23:$E$23),"вне рынка") -> 83.5 | J29: TRUE
B30: -1 | C30: -1 | D30: -1 | E30: 0 | H30: =(B23*B30+C23*C30+D23*D30+E23*E30)/(B30+C30+D30+E30) -> 83 | I30: =IF(SUM(B30:E30),TradeFIFO(B30:E30,$B$23:$E$23),"вне рынка") -> 83 | J30: TRUE
B31: -1 | C31: -1 | D31: 0 | E31: 0 | H31: =(B23*B31+C23*C31+D23*D31+E23*E31)/(B31+C31+D31+E31) -> 82.5 | I31: =IF(SUM(B31:E31),TradeFIFO(B31:E31,$B$23:$E$23),"вне рынка") -> 82.5 | J31: TRUE
B32: -1 | C32: -1 | D32: 0 | E32: -1 | H32: =(B23*B32+C23*C32+D23*D32+E23*E32)/(B32+C32+D32+E32) -> 83.33333333 | I32: =IF(SUM(B32:E32),TradeFIFO(B32:E32,$B$23:$E$23),"вне рынка") -> 83.33333333 | J32: TRUE
B33: -3 | C33: 1 | D33: 1 | E33: 1 | H33: =IF(SUM(B33:E33)=0,"вне рынка") -> вне рынка | I33: =IF(SUM(B33:E33),TradeFIFO(B33:E33,$B$23:$E$23),"вне рынка") -> вне рынка | J33: TRUE
B34: -3 | C34: 1 | D34: 2 | E34: 1 | H34: =E23 -> 85 | I34: =IF(SUM(B34:E34),TradeFIFO(B34:E34,$B$23:$E$23),"вне рынка") -> 85 | J34: TRUE
B35: -3 | C35: 2 | D35: 2 | E35: 1 | H35: =(D23*(B35+C35+D35)+E23*E35)/((B35+C35+D35)+E35) -> 84.5 | I35: =IF(SUM(B35:E35),TradeFIFO(B35:E35,$B$23:$E$23),"вне рынка") -> 84.5 | J35: TRUE
B36: -4 | C36: 1 | D36: 1 | E36: 1 | H36: =(B23*(B36+C36+D36+E36))/(B36+C36+D36+E36) -> 82 | I36: =IF(SUM(B36:E36),TradeFIFO(B36:E36,$B$23:$E$23),"вне рынка") -> 82 | J36: TRUE
B37: -3 | C37: -2 | D37: 1 | E37: 1 | H37: =(B23*B37+C23*C37+D23*0+E37*0)/(B37+C37+D37*0+E37*0) -> 82.4 | I37: =IF(SUM(B37:E37),TradeFIFO(B37:E37,$B$23:$E$23),"вне рынка") -> 82.4 | J37: TRUE
B38: -3 | C38: -2 | D38: 5 | E38: 1 | H38: =E23 -> 85 | I38: =IF(SUM(B38:E38),TradeFIFO(B38:E38,$B$23:$E$23),"вне рынка") -> 85 | J38: TRUE
B39: -3 | C39: -2 | D39: 6 | E39: 1 | H39: =(D23*(B39+C39+D39)+E23*E39)/(B39+C39+D39+E39) -> 84.5 | I39: =IF(SUM(B39:E39),TradeFIFO(B39:E39,$B$23:$E$23),"вне рынка") -> 84.5 | J39: TRUE
B40: -3 | C40: -2 | D40: 4 | E40: 1 | H40: =IF(SUM(B40:E40)=0,"вне рынка") -> вне рынка | I40: =IF(SUM(B40:E40),TradeFIFO(B40:E40,$B$23:$E$23),"вне рынка") -> вне рынка | J40: TRUE
B41: -3 | C41: -2 | D41: -1 | E41: 1 | H41: =(B23*B41+C23*C41+D23*D41+E23*E41*0)/(B41+C41+D41+E41*0) -> 82.66666667 | I41: =IF(SUM(B41:E41),TradeFIFO(B41:E41,$B$23:$E$23),"вне рынка") -> 82.66666667 | J41: TRUE
B42: -3 | C42: -2 | D42: -1 | E42: 6 | H42: =IF(SUM(B42:E42)=0,"вне рынка") -> вне рынка | I42: =IF(SUM(B42:E42),TradeFIFO(B42:E42,$B$23:$E$23),"вне рынка") -> вне рынка | J42: TRUE
B43: -3 | C43: -2 | D43: -1 | E43: 7 | H43: =(E23*(B43+C43+D43+E43))/(B43+C43+D43+E43) -> 85 | I43: =IF(SUM(B43:E43),TradeFIFO(B43:E43,$B$23:$E$23),"вне рынка") -> 85 | J43: TRUE
B44: 3 | C44: -1 | D44: -1 | E44: -1 | H44: =IF(SUM(B44:E44)=0,"вне рынка") -> вне рынка | I44: =IF(SUM(B44:E44),TradeFIFO(B44:E44,$B$23:$E$23),"вне рынка") -> вне рынка | J44: TRUE
B45: 4 | C45: -1 | D45: -6 | E45: -1 | H45: =(B23*(B45+C45+D45+E45))/(B45+C45+D45+E45) -> 82 | I45: =IF(SUM(B45:E45),TradeFIFO(B45:E45,$B$23:$E$23),"вне рынка") -> 84.25 | J45: FALSE
B46: 3 | C46: -2 | D46: -2 | E46: -1 | H46: =(D23*(B46+C46+D46)+E23*E46)/(B46+C46+D46+E46) -> 84.5 | I46: =IF(SUM(B46:E46),TradeFIFO(B46:E46,$B$23:$E$23),"вне рынка") -> 84.5 | J46: TRUE
B47: 3 | C47: -1 | D47: -1 | E47: -2 | H47: =(E23*(B47+C47+D47+E47)/(B47+C47+D47+E47)) -> 85 | I47: =IF(SUM(B47:E47),TradeFIFO(B47:E47,$B$23:$E$23),"вне рынка") -> 85 | J47: TRUE
B48: 3 | C48: 1 | D48: -1 | E48: -1 | H48: =(B23*B48+C23*C48+D23*D48*0+E23*E48*0)/(B48+C48+D48*0+E48*0) -> 82.25 | I48: =IF(SUM(B48:E48),TradeFIFO(B48:E48,$B$23:$E$23),"вне рынка") -> 82.25 | J48: TRUE
B49: 3 | C49: 1 | D49: -4 | E49: -1 | H49: =E23 -> 85 | I49: =IF(SUM(B49:E49),TradeFIFO(B49:E49,$B$23:$E$23),"вне рынка") -> 85 | J49: TRUE
B50: 3 | C50: 1 | D50: -5 | E50: -1 | H50: =(D23*(B50+C50+D50)+E23*E50)/(B50+C50+D50+E50) -> 84.5 | I50: =IF(SUM(B50:E50),TradeFIFO(B50:E50,$B$23:$E$23),"вне рынка") -> 84.5 | J50: TRUE
B51: 3 | C51: 1 | D51: -3 | E51: -1 | H51: =IF(SUM(B51:E51)=0,"вне рынка") -> вне рынка | I51: =IF(SUM(B51:E51),TradeFIFO(B51:E51,$B$23:$E$23),"вне рынка") -> вне рынка | J51: TRUE
B52: 3 | C52: 1 | D52: 1 | E52: -5 | H52: =IF(SUM(B52:E52)=0,"вне рынка") -> вне рынка | I52: =IF(SUM(B52:E52),TradeFIFO(B52:E52,$B$23:$E$23),"вне рынка") -> вне рынка | J52: TRUE
B53: 3 | C53: 1 | D53: 1 | E53: -2 | H53: =(B23*B53+C23*C53+D23*D53+E23*E53*0)/(B53+C53+D53+E53*0) -> 82.6 | I53: =IF(SUM(B53:E53),TradeFIFO(B53:E53,$B$23:$E$23),"вне рынка") -> 82.6 | J53: TRUE
B54: 3 | C54: 1 | D54: 1 | E54: -6 | H54: =(E23*(B54+C54+D54+E54)/(B54+C54+D54+E54)) -> 85 | I54: =IF(SUM(B54:E54),TradeFIFO(B54:E54,$B$23:$E$23),"вне рынка") -> 85 | J54: TRUE
B55: 3 | C55: -2 | D55: 1 | E55: -2 | H55: =IF(SUM(B55:E55)=0,"вне рынка") -> вне рынка | I55: =IF(SUM(B55:E55),TradeFIFO(B55:E55,$B$23:$E$23),"вне рынка") -> вне рынка | J55: TRUE
B56: 3 | C56: -2 | D56: 1 | E56: -1 | H56: =(B23*(B56+C56)+C23*C56*0+D23*D56+E23*E56*0)/((B56+C56)+C56*0+D56+E56*0) -> 83 | I56: =IF(SUM(B56:E56),TradeFIFO(B56:E56,$B$23:$E$23),"вне рынка") -> 83 | J56: TRUE
B57: 3 | C57: -2 | D57: 1 | E57: -3 | H57: =(E23*(B57+C57+D57+E57))/(B57+C57+D57+E57) -> 85 | I57: =IF(SUM(B57:E57),TradeFIFO(B57:E57,$B$23:$E$23),"вне рынка") -> 85 | J57: TRUE
B58: -3 | C58: 2 | D58: 1 | E58: -1 | H58: =(B23*(B58+C58+D58)+C23*(B58+C58+D58)+D23*(B58+C58+D58)+E23*E58)/(B58+C58+D58+E58) -> 85 | I58: =IF(SUM(B58:E58),TradeFIFO(B58:E58,$B$23:$E$23),"вне рынка") -> 85 | J58: TRUE
B59: -4 | C59: 2 | D59: 1 | E59: -1 | H59: =(B23*(B59+C59+D59)+C23*C59*0+D23*D59*0+E23*E59)/(B59+C59+D59+E59) -> 83.5 | I59: =IF(SUM(B59:E59),TradeFIFO(B59:E59,$B$23:$E$23),"вне рынка") -> 83.5 | J59: TRUE
B60: -4 | C60: 2 | D60: 3 | E60: -1 | H60: =IF(SUM(B60:E60)=0,"вне рынка") -> вне рынка | I60: =IF(SUM(B60:E60),TradeFIFO(B60:E60,$B$23:$E$23),"вне рынка") -> вне рынка | J60: TRUE
B61: -4 | C61: 2 | D61: 4 | E61: -1 | H61: =(B23*B61*0+C23*C61*0+D23*(B61+C61+D61+E61)+E23*E61*0)/(B61+C61+D61+E61) -> 84 | I61: =IF(SUM(B61:E61),TradeFIFO(B61:E61,$B$23:$E$23),"вне рынка") -> 84 | J61: TRUE
B62: 3 | C62: -2 | D62: -1 | E62: 1 | H62: =(B23*(B62+C62+D62)+C23*(B62+C62+D62)+D23*(B62+C62+D62)+E23*(B62+C62+D62+E62))/(B62+C62+D62+E62) -> 85 | I62: =IF(SUM(B62:E62),TradeFIFO(B62:E62,$B$23:$E$23),"вне рынка") -> 85 | J62: TRUE
B63: 3 | C63: -1 | D63: -1 | E63: 1 | H63: =(B23*(B63+C63+D63)+C23*C63*0+D23*D63*0+E23*E63)/(B63+C63+D63+E63) -> 83.5 | I63: =IF(SUM(B63:E63),TradeFIFO(B63:E63,$B$23:$E$23),"вне рынка") -> 83.5 | J63: TRUE
B64: 3 | C64: -2 | D64: -2 | E64: 1 | H64: =IF(SUM(B64:E64)=0,"вне рынка") -> вне рынка | I64: =IF(SUM(B64:E64),TradeFIFO(B64:E64,$B$23:$E$23),"вне рынка") -> вне рынка | J64: TRUE
B65: 3 | C65: -2 | D65: -3 | E65: 1 | H65: =(B23*B65*0+C23*C65*0+D23*(B65+C65+D65+E65)+E23*E65*0)/(B65+C65+D65+E65) -> 84 | I65: =IF(SUM(B65:E65),TradeFIFO(B65:E65,$B$23:$E$23),"вне рынка") -> 84 | J65: TRUE
B66: -3 | C66: -1 | D66: 1 | E66: -1 | H66: =((((B23*B66+C23*C66)/(B66+C66))*(B66+C66+D66))+(E23*E66))/(B66+C66+D66+E66) -> 82.9375 | I66: =IF(SUM(B66:E66),TradeFIFO(B66:E66,$B$23:$E$23),"вне рынка") -> 82.9375 | J66: TRUE
B67: -3 | C67: -2 | D67: 5 | E67: -1 | H67: =(B23*(B67+C67+D67)+C23*(B67+C67+D67)+D23*(B67+C67+D67)+E23*(B67+C67+D67+E67))/(B67+C67+D67+E67) -> 85 | I67: =IF(SUM(B67:E67),TradeFIFO(B67:E67,$B$23:$E$23),"вне рынка") -> 85 | J67: TRUE
B68: -3 | C68: -2 | D68: 6 | E68: -1 | H68: =IF(SUM(B68:E68)=0,"вне рынка") -> вне рынка | I68: =IF(SUM(B68:E68),TradeFIFO(B68:E68,$B$23:$E$23),"вне рынка") -> вне рынка | J68: TRUE
B69: -3 | C69: -2 | D69: 7 | E69: -1 | H69: =(B23*B69*0+C23*C69*0+D23*(B69+C69+D69+E69)+E23*E69*0)/(B69+C69+D69+E69) -> 84 | I69: =IF(SUM(B69:E69),TradeFIFO(B69:E69,$B$23:$E$23),"вне рынка") -> 84 | J69: TRUE
B70: -3 | C70: 2 | D70: -3 | E70: 1 | H70: =(B23*(B70+C70)+C23*C70*0+D23*D70+E23*E70*0)/(B70+C70+D70+E70*0) -> 83.5 | I70: =IF(SUM(B70:E70),TradeFIFO(B70:E70,$B$23:$E$23),"вне рынка") -> 83.5 | J70: TRUE
B71: -3 | C71: 2 | D71: -2 | E71: 3 | H71: =IF(SUM(B71:E71)=0,"вне рынка") -> вне рынка | I71: =IF(SUM(B71:E71),TradeFIFO(B71:E71,$B$23:$E$23),"вне рынка") -> вне рынка | J71: TRUE
B72: -3 | C72: 2 | D72: -2 | E72: 4 | H72: =(B23*B72*0+C23*C72*0+D23*D72*0+E23*E72)/(B72*0+C72*0+D72*0+E72) -> 85 | I72: =IF(SUM(B72:E72),TradeFIFO(B72:E72,$B$23:$E$23),"вне рынка") -> 85 | J72: TRUE
B73: 2 | C73: 1 | D73: -1 | E73: 1 | H73: =((((B23*B73+C23*C73)/(B73+C73))*(B73+C73+D73))+(E23*E73))/(B73+C73+D73+E73) -> 83.22222222 | I73: =IF(SUM(B73:E73),TradeFIFO(B73:E73,$B$23:$E$23),"вне рынка") -> 83.22222222 | J73: TRUE
B74: 3 | C74: 2 | D74: -5 | E74: 1 | H74: =(B23*(B74+C74+D74)+C23*(B74+C74+D74)+D23*(B74+C74+D74)+E23*(B74+C74+D74+E74))/(B74+C74+D74+E74) -> 85 | I74: =IF(SUM(B74:E74),TradeFIFO(B74:E74,$B$23:$E$23),"вне рынка") -> 85 | J74: TRUE
B75: 3 | C75: 2 | D75: -6 | E75: 1 | H75: =IF(SUM(B75:E75)=0,"вне рынка") -> вне рынка | I75: =IF(SUM(B75:E75),TradeFIFO(B75:E75,$B$23:$E$23),"вне рынка") -> вне рынка | J75: TRUE
B76: 3 | C76: 2 | D76: -7 | E76: 1 | H76: =(B23*B76*0+C23*C76*0+D23*(B76+C76+D76+E76)+E23*E76*0)/(B76+C76+D76+E76) -> 84 | I76: =IF(SUM(B76:E76),TradeFIFO(B76:E76,$B$23:$E$23),"вне рынка") -> 84 | J76: TRUE
B77: -3 | C77: 2 | D77: 0 | E77: 1 | H77: =IF(SUM(B77:E77)=0,"вне рынка") -> вне рынка | I77: =IF(SUM(B77:E77),TradeFIFO(B77:E77,$B$23:$E$23),"вне рынка") -> вне рынка | J77: TRUE
B78: -3 | C78: 2 | D78: 0 | E78: 2 | H78: =(B23*B78*0+C23*C78*0+D23*D78*0+E23*E78)/(B78*0+C78*0+D78*0+E78) -> 85 | I78: =IF(SUM(B78:E78),TradeFIFO(B78:E78,$B$23:$E$23),"вне рынка") -> 85 | J78: TRUE
B79: -4 | C79: 2 | D79: 0 | E79: 1 | H79: =(B23*(B79+C79+D79+E79)+C23*C79*0+D23*D79*0+E23*E79*0)/(B79+C79+D79+E79) -> 82 | I79: =IF(SUM(B79:E79),TradeFIFO(B79:E79,$B$23:$E$23),"вне рынка") -> 82 | J79: TRUE
B80: -3 | C80: 2 | D80: 1 | E80: 0 | H80: =IF(SUM(B80:E80)=0,"вне рынка") -> вне рынка | I80: =IF(SUM(B80:E80),TradeFIFO(B80:E80,$B$23:$E$23),"вне рынка") -> вне рынка | J80: TRUE
B81: -3 | C81: 2 | D81: 2 | E81: 0 | H81: =(B23*B81*0+C23*C81*0+D23*(B81+C81+D81)+E23*E81)/(B81+C81+D81+E81) -> 84 | I81: =IF(SUM(B81:E81),TradeFIFO(B81:E81,$B$23:$E$23),"вне рынка") -> 84 | J81: TRUE
B82: -4 | C82: 2 | D82: 1 | E82: 0 | H82: =(B23*(B82+C82+D82+E82)+C23*C82*0+D23*D82*0+E23*E82*0)/(B82+C82+D82+E82) -> 82 | I82: =IF(SUM(B82:E82),TradeFIFO(B82:E82,$B$23:$E$23),"вне рынка") -> 82 | J82: TRUE
B83: -3 | C83: 2 | D83: 0 | E83: 0 | H83: =(B23*(B83+C83)+C23*C83*0)/(B83+C83) -> 82 | I83: =IF(SUM(B83:E83),TradeFIFO(B83:E83,$B$23:$E$23),"вне рынка") -> 82 | J83: TRUE
B84: -3 | C84: -2 | D84: 0 | E84: 1 | H84: =(B23*B84+C23*C84+D23*D84+E23*E84*0)/(B84+C84+D84+E84*0) -> 82.4 | I84: =IF(SUM(B84:E84),TradeFIFO(B84:E84,$B$23:$E$23),"вне рынка") -> 82.4 | J84: TRUE
B85: -3 | C85: -2 | D85: 0 | E85: 5 | H85: =IF(SUM(B85:E85)=0,"вне рынка") -> вне рынка | I85: =IF(SUM(B85:E85),TradeFIFO(B85:E85,$B$23:$E$23),"вне рынка") -> вне рынка | J85: TRUE
B86: -3 | C86: -2 | D86: 0 | E86: 6 | H86: =(B23*B86*0+C23*C86*0+D23*D86+E23*E86)/(B86*0+C86*0+D86+E86) -> 85 | I86: =IF(SUM(B86:E86),TradeFIFO(B86:E86,$B$23:$E$23),"вне рынка") -> 85 | J86: TRUE
B87: -3 | C87: 2 | D87: 0 | E87: -1 | H87: =(B23*(B87+C87)+C23*C87*0+D23*D87+E23*E87)/(B87+C87+D87+E87) -> 83.5 | I87: =IF(SUM(B87:E87),TradeFIFO(B87:E87,$B$23:$E$23),"вне рынка") -> 83.5 | J87: TRUE
B88: -3 | C88: -2 | D88: 1 | E88: 0 | H88: =(B23*B88+C23*C88+D23*D88*0+E23*E88)/(B88+C88+D88*0+E88) -> 82.4 | I88: =IF(SUM(B88:E88),TradeFIFO(B88:E88,$B$23:$E$23),"вне рынка") -> 82.4 | J88: TRUE
B89: -3 | C89: -2 | D89: 5 | E89: 0 | H89: =IF(SUM(B89:E89)=0,"вне рынка") -> вне рынка | I89: =IF(SUM(B89:E89),TradeFIFO(B89:E89,$B$23:$E$23),"вне рынка") -> вне рынка | J89: TRUE
B90: -3 | C90: -2 | D90: 6 | E90: 0 | H90: =(B23*B90*0+C23*C90*0+D23*(B90+C90+D90)+E23*E90)/(B90+C90+D90+E90) -> 84 | I90: =IF(SUM(B90:E90),TradeFIFO(B90:E90,$B$23:$E$23),"вне рынка") -> 84 | J90: =H90=I90 -> TRUE
B91: 3 | C91: -1 | D91: 0 | E91: -1 | H91: =(B23*(B91+C91+D91+E91)+C23*C91*0+D23*D91*0+E23*E91*0)/(B91+C91+D91+E91) -> 82 | I91: =IF(SUM(B91:E91),TradeFIFO(B91:E91,$B$23:$E$23),"вне рынка") -> 82 | J91: TRUE
B92: 3 | C92: -2 | D92: 0 | E92: -1 | H92: =IF(SUM(B92:E92)=0,"вне рынка") -> вне рынка | I92: =IF(SUM(B92:E92),TradeFIFO(B92:E92,$B$23:$E$23),"вне рынка") -> вне рынка | J92: TRUE
B93: 3 | C93: -2 | D93: 0 | E93: -2 | H93: =(B23*B93*0+C23*C93*0+D23*D93+E23*E93)/(B93*0+C93*0+D93+E93) -> 85 | I93: =IF(SUM(B93:E93),TradeFIFO(B93:E93,$B$23:$E$23),"вне рынка") -> 85 | J93: TRUE
B94: 3 | C94: -2 | D94: -1 | E94: 0 | H94: =IF(SUM(B94:E94)=0,"вне рынка") -> вне рынка | I94: =IF(SUM(B94:E94),TradeFIFO(B94:E94,$B$23:$E$23),"вне рынка") -> вне рынка | J94: TRUE
B95: 3 | C95: -2 | D95: -2 | E95: 0 | H95: =(B23*B95*0+C23*C95*0+D23*(B95+C95+D95)+E23*E95)/(B95+C95+D95+E95) -> 84 | I95: =IF(SUM(B95:E95),TradeFIFO(B95:E95,$B$23:$E$23),"вне рынка") -> 84 | J95: TRUE
B96: 4 | C96: -2 | D96: -1 | E96: 0 | H96: =(B23*(B96+C96+D96+E96)+C23*C96*0+D23*D96*0+E23*E96)/(B96+C96+D96+E96) -> 82 | I96: =IF(SUM(B96:E96),TradeFIFO(B96:E96,$B$23:$E$23),"вне рынка") -> 82 | J96: TRUE
B97: 3 | C97: -2 | D97: 0 | E97: 0 | H97: =(B23*(B97+C97)+C23*C97*0)/(B97+C97) -> 82 | I97: =IF(SUM(B97:E97),TradeFIFO(B97:E97,$B$23:$E$23),"вне рынка") -> 82 | J97: TRUE
B98: 3 | C98: 2 | D98: 0 | E98: -1 | H98: =(B23*B98+C23*C98+D23*D98+E23*E98*0)/(B98+C98+D98+E98*0) -> 82.4 | I98: =IF(SUM(B98:E98),TradeFIFO(B98:E98,$B$23:$E$23),"вне рынка") -> 82.4 | J98: TRUE
B99: 3 | C99: 2 | D99: 0 | E99: -5 | H99: =IF(SUM(B99:E99)=0,"вне рынка") -> вне рынка | I99: =IF(SUM(B99:E99),TradeFIFO(B99:E99,$B$23:$E$23),"вне рынка") -> вне рынка | J99: TRUE
B100: 3 | C100: 2 | D100: 0 | E100: -6 | H100: =(B23*B100*0+C23*C100*0+D23*D100+E23*E100)/(B100*0+C100*0+D100+E100) -> 85 | I100: =IF(SUM(B100:E100),TradeFIFO(B100:E100,$B$23:$E$23),"вне рынка") -> 85 | J100: TRUE
B101: 3 | C101: -2 | D101: 0 | E101: 1 | H101: =(B23*(B101+C101)+C23*C101*0+D23*D101+E23*E101)/(B101+C101+D101+E101) -> 83.5 | I101: =IF(SUM(B101:E101),TradeFIFO(B101:E101,$B$23:$E$23),"вне рынка") -> 83.5 | J101: TRUE
B102: 3 | C102: 2 | D102: -1 | E102: 0 | H102: =(B23*B102+C23*C102+D23*D102*0+E23*E102)/(B102+C102+D102*0+E102) -> 82.4 | I102: =IF(SUM(B102:E102),TradeFIFO(B102:E102,$B$23:$E$23),"вне рынка") -> 82.4 | J102: TRUE
B103: 3 | C103: 2 | D103: -5 | E103: 0 | H103: =IF(SUM(B103:E103)=0,"вне рынка") -> вне рынка | I103: =IF(SUM(B103:E103),TradeFIFO(B103:E103,$B$23:$E$23),"вне рынка") -> вне рынка | J103: TRUE
B104: 3 | C104: 2 | D104: -6 | E104: 0 | H104: =(D23*(B104+C104+D104)+E23*E104)/(B104+C104+D104+E104) -> 84 | I104: =IF(SUM(B104:E104),TradeFIFO(B104:E104,$B$23:$E$23),"вне рынка") -> 84 | J104: TRUE

Sheet Лист2

Sheet Лист3
